fUSD/lending_fUSD_20240502
["ID","MTS","AMOUNT","RATE_DAILY","PERIOD"]
[325257202,1714667444946,-191.6186474,0.00036164,7]
[325257203,1714667444955,-743.73,0.00036164,7]
[325257204,1714667444964,-500.0,0.00036164,7]
[325257205,1714667444974,-500.0,0.00036164,7]
[325257206,1714667444983,-215.37063172,0.00036164,7]
[325257207,1714667444992,-500.0,0.00036164,7]
[325257208,1714667445002,-502.25990833,0.00036164,2]
[325257209,1714667445011,-500.0,0.00036164,7]
[325257210,1714667445021,-500.0,0.00036164,7]
[325257211,1714667445031,-634.72,0.00036164,7]
[325257212,1714667445040,-500.0,0.00036164,7]
[325257213,1714667445049,-500.0,0.00036164,7]
[325257214,1714667445058,-500.0,0.00036164,7]
[325257215,1714667445068,-1157.4,0.00036164,7]
[325257216,1714667445077,-522.63659373,0.00036164,7]
[325257217,1714667445086,-484.28845242,0.00036164,7]
[325257218,1714667445096,-500.0,0.00036164,7]
[325257219,1714667445105,-500.0,0.00036164,7]
[325257220,1714667445115,-532.49,0.00036164,7]
[325257221,1714667445125,-500.0,0.00036164,7]
[325257222,1714667445134,-500.0,0.00036164,7]
[325257223,1714667445144,-500.0,0.00036164,7]
[325257224,1714667445154,-500.0,0.00036164,7]
[325257225,1714667445164,-500.0,0.00036164,7]
[325257226,1714667445174,-500.0,0.00036164,7]
[325257227,1714667445183,-529.66191151,0.00036164,7]
[325257228,1714667445193,-500.0,0.00036164,7]
[325257229,1714667445202,-510.03290831,0.00036164,7]
[325257231,1714667445211,-500.0,0.00036164,7]
[325257232,1714667445220,-500.0,0.00036164,7]
[325257234,1714667445230,-500.0,0.00036164,7]
[325257235,1714667445241,-500.0,0.00036164,7]
[325257236,1714667445251,-500.0,0.00036164,7]
[325257237,1714667445261,-500.0,0.00036164,7]
[325257238,1714667445270,-500.0,0.00036164,7]
[325257239,1714667445282,-603.56,0.00036164,7]
[325257240,1714667445293,-500.0,0.00036164,7]
[325257241,1714667445302,-500.0,0.00036164,7]
[325257242,1714667445312,-333.87643775,0.00036164,7]
[325257243,1714667445321,-500.0,0.00036164,7]
[325257244,1714667445331,-991.1,0.00036164,7]
[325257245,1714667445340,-500.0,0.00036164,7]
[325257246,1714667445349,-500.0,0.00036164,7]
[325257247,1714667445359,-500.0,0.00036164,7]
[325257248,1714667445369,-840.49,0.00036164,7]
[325257249,1714667445379,-500.0,0.00036164,7]
[325257250,1714667445389,-500.0,0.00036164,7]
[325257251,1714667445398,-500.0,0.00036164,7]
[325257252,1714667445407,-716.64,0.00036164,7]
[325257253,1714667445416,-949.83,0.00036164,7]
[325257254,1714667445426,-500.0,0.00036164,7]
[325257255,1714667445435,-506.19,0.00036164,7]
[325257256,1714667445444,-500.0,0.00036164,7]
[325257257,1714667445455,-500.0,0.00036164,7]
[325257258,1714667445465,-500.0,0.00036164,7]
[325257259,1714667445474,-510.80117295,0.00036164,7]
[325257260,1714667445484,-500.0,0.00036164,7]
[325257261,1714667445493,-500.0,0.00036164,7]
[325257262,1714667445503,-500.0,0.00036164,7]
[325257263,1714667445512,-1640.57,0.00036164,7]
[325257264,1714667445521,-1060.31,0.00036164,7]
[325257266,1714667445530,-500.0,0.00036164,7]
[325257268,1714667445541,-477.39730166,0.00036164,7]
[325257270,1714667445550,-500.0,0.00036164,7]
[325257272,1714667445561,-500.0,0.00036164,7]
[325257274,1714667445571,-500.0,0.00036164,7]
[325257276,1714667445582,-500.0,0.00036164,7]
[325257278,1714667445593,-500.0,0.00036164,7]
[325257280,1714667445603,-500.0,0.00036164,7]
[325257282,1714667445613,-840.85,0.00036164,7]
[325257284,1714667445624,-500.0,0.00036164,7]
[325257286,1714667445634,-500.0,0.00036164,7]
[325257288,1714667445644,-500.0,0.00036164,7]
[325257290,1714667445653,-500.0,0.00036164,7]
[325257292,1714667445663,-500.0,0.00036164,7]
[325257294,1714667445672,-507.06825822,0.00036164,7]
[325257296,1714667445681,-895.77,0.00036164,7]
[325257298,1714667445691,-500.0,0.00036164,7]
[325257300,1714667445700,-685.75,0.00036164,7]
[325257301,1714667445709,-500.0,0.00036164,7]
[325257303,1714667445718,-508.11422935,0.00036164,7]
[325257304,1714667445727,-500.0,0.00036164,7]
[325257306,1714667445737,-500.0,0.00036164,7]
[325257308,1714667445747,-500.0,0.00036164,7]
[325257310,1714667445756,-500.0,0.00036164,7]
[325257312,1714667445767,-525.84,0.00036164,7]
[325257314,1714667445777,-1191.0,0.00036164,7]
[325257316,1714667445786,-500.0,0.00036164,7]
[325257318,1714667445796,-454.61114485,0.00036164,7]
[325257319,1714667445805,-500.0,0.00036164,7]
[325257321,1714667445815,-500.0,0.00036164,7]
[325257323,1714667445824,-500.0,0.00036164,7]
[325257324,1714667445833,-500.0,0.00036164,7]
[325257325,1714667445842,-500.0,0.00036164,7]
[325257326,1714667445851,-1327.07,0.00036164,7]
[325257327,1714667445861,-500.0,0.00036164,7]
[325257328,1714667445871,-707.21,0.00036164,7]
[325257329,1714667445881,-500.0,0.00036164,7]
[325257330,1714667445891,-509.85447148,0.00036164,7]
[325257331,1714667445900,-500.0,0.00036164,7]
[325257332,1714667445909,-500.0,0.00036164,7]
[325257333,1714667445918,-500.0,0.00036164,7]
[325257334,1714667445928,-500.0,0.00036164,7]
[325257335,1714667445937,-500.0,0.00036164,7]
[325257336,1714667445947,-500.0,0.00036164,7]
[325257337,1714667445955,-500.0,0.00036164,7]
[325257338,1714667445965,-500.0,0.00036164,7]
[325257339,1714667445974,-500.0,0.00036164,7]
[325257340,1714667445983,-291.93126146,0.00036164,7]
[325257341,1714667445993,-608.89,0.00036164,7]
[325257342,1714667446002,-500.0,0.00036164,7]
[325257343,1714667446012,-500.0,0.00036164,7]
[325257344,1714667446022,-500.0,0.00036164,7]
[325257345,1714667446031,-500.0,0.00036164,7]
[325257346,1714667446041,-1542.15,0.00036164,7]
[325257347,1714667446050,-210.60549299,0.00036164,2]
[325257348,1714667446060,-500.0,0.00036164,7]
[325257349,1714667446070,-500.0,0.00036164,7]
[325257350,1714667446079,-500.0,0.00036164,7]
[325257351,1714667446088,-1419.66,0.00036164,7]
[325257352,1714667446098,-500.0,0.00036164,7]
[325257353,1714667446107,-500.0,0.00036164,7]
[325257354,1714667446117,-500.0,0.00036164,7]
[325257355,1714667446127,-500.0,0.00036164,7]
[325257356,1714667446136,-500.0,0.00036164,7]
[325257357,1714667446145,-500.0,0.00036164,7]
[325257358,1714667446155,-500.0,0.00036164,7]
[325257359,1714667446164,-500.0,0.00036164,7]
[325257360,1714667446174,-505.1721381,0.00036164,7]
[325257361,1714667446183,-1618.03,0.00036164,7]
[325257362,1714667446192,-500.0,0.00036164,7]
[325257363,1714667446201,-500.0,0.00036164,7]
[325257364,1714667446211,-500.0,0.00036164,7]
[325257365,1714667446220,-3159.26,0.00036164,7]
[325257366,1714667446229,-500.0,0.00036164,7]
[325257367,1714667446239,-500.0,0.00036164,7]
[325257368,1714667446255,-500.0,0.00036164,7]
[325257369,1714667446264,-503.09819592,0.00036164,7]
[325257370,1714667446273,-500.0,0.00036164,7]
[325257371,1714667446283,-500.0,0.00036164,7]
[325257372,1714667446293,-500.0,0.00036164,7]
[325257373,1714667446302,-1844.86,0.00036164,7]
[325257374,1714667446311,-506.79967154,0.00036164,7]
[325257375,1714667446322,-500.0,0.00036164,7]
[325257376,1714667446331,-500.0,0.00036164,7]
[325257377,1714667446340,-500.0,0.00036164,7]
[325257378,1714667446350,-500.0,0.00036164,7]
[325257379,1714667446358,-500.0,0.00036164,7]
[325257380,1714667446368,-264.76018276,0.00036164,7]
[325257381,1714667446379,-730.78,0.00036164,7]
[325257382,1714667446388,-500.0,0.00036164,7]
[325257383,1714667446396,-500.0,0.00036164,7]
[325257384,1714667446406,-500.0,0.00036164,7]
[325257385,1714667446415,-653.03,0.00036164,7]
[325257386,1714667446424,-500.0,0.00036164,7]
[325257387,1714667446433,-500.0,0.00036164,7]
[325257388,1714667446442,-500.0,0.00036164,7]
[325257389,1714667446451,-500.0,0.00036164,7]
[325257390,1714667446460,-967.92,0.00036164,7]
[325257391,1714667446469,-500.0,0.00036164,7]
[325257392,1714667446478,-1523.48,0.00036164,7]
[325257393,1714667446487,-500.0,0.00036164,7]
[325257394,1714667446497,-500.0,0.00036164,7]
[325257395,1714667446506,-500.0,0.00036164,7]
[325257396,1714667446515,-503.69304038,0.00036164,7]
[325257397,1714667446524,-2155.99,0.00036164,7]
[325257398,1714667446533,-517.26265387,0.00036164,7]
[325257399,1714667446543,-500.0,0.00036164,7]
[325257400,1714667446551,-500.0,0.00036164,7]
[325257401,1714667446561,-500.0,0.00036164,2]
[325257402,1714667446570,-500.0,0.00036164,7]
[325257403,1714667446579,-500.0,0.00036164,7]
[325257404,1714667446588,-510.35621114,0.00036164,7]
[325257405,1714667446756,-500.0,0.00036164,7]
[325257406,1714667446766,-500.0,0.00036164,7]
[325257407,1714667446775,-500.0,0.00036164,7]
[325257408,1714667446784,-1644.61,0.00036164,7]
[325257409,1714667446793,-500.0,0.00036164,7]
[325257410,1714667446802,-555.04,0.00036164,7]
[325257411,1714667446811,-500.0,0.00036164,7]
[325257412,1714667446821,-500.0,0.00036164,7]
[325257413,1714667446830,-709.13,0.00036164,7]
[325257414,1714667446839,-500.0,0.00036164,7]
[325257415,1714667446849,-500.0,0.00036164,7]
[325257416,1714667446859,-500.0,0.00036164,7]
[325257417,1714667446868,-500.0,0.00036164,7]
[325257418,1714667446878,-500.0,0.00036164,7]
[325257419,1714667446887,-500.0,0.00036164,7]
[325257420,1714667446897,-1624.89,0.00036164,7]
[325257421,1714667446906,-500.0,0.00036164,7]
[325257422,1714667446915,-400.44042702,0.00036164,2]
[325257423,1714667446924,-571.28,0.00036164,7]
[325257424,1714667446934,-801.44,0.00036164,7]
[325257425,1714667446943,-500.0,0.00036164,7]
[325257426,1714667446952,-626.78,0.00036164,7]
[325257427,1714667446964,-500.0,0.00036164,7]
[325257428,1714667446973,-500.0,0.00036164,7]
[325257429,1714667446983,-500.0,0.00036164,7]
[325257430,1714667446992,-638.54,0.00036164,7]
[325257431,1714667447002,-500.0,0.00036164,7]
[325257432,1714667447011,-500.0,0.00036164,7]
[325257433,1714667447021,-500.0,0.00036164,7]
[325257434,1714667447031,-500.0,0.00036164,7]
[325257435,1714667447039,-152.59293893,0.00036164,7]
[325257436,1714667447048,-500.0,0.00036164,7]
[325257437,1714667447058,-395.39339088,0.00036164,7]
[325257438,1714667447067,-834.42,0.00036164,7]
[325257439,1714667447076,-928.16,0.00036164,7]
[325257440,1714667447086,-927.43,0.00036164,7]
[325257441,1714667447095,-500.0,0.00036164,7]
[325257442,1714667447105,-500.0,0.00036164,7]
[325257443,1714667447114,-500.0,0.00036164,7]
[325257444,1714667447124,-500.0,0.00036164,7]
[325257445,1714667447133,-500.0,0.00036164,7]
[325257446,1714667447143,-500.31151354,0.00036164,7]
[325257447,1714667447153,-500.0,0.00036164,7]
[325257448,1714667447162,-500.0,0.00036164,7]
[325257449,1714667447171,-500.0,0.00036164,7]
[325257450,1714667447181,-2421.83,0.00036164,7]
[325257451,1714667447191,-500.0,0.00036164,7]
[325257452,1714667447202,-319.61228822,0.00036164,7]
[325257453,1714667447212,-500.0,0.00036164,7]
[325257454,1714667447222,-623.99,0.00036164,7]
[325257455,1714667447231,-500.0,0.00036164,7]
[325257456,1714667447243,-1417.54,0.00036164,7]
[325257457,1714667447261,-505.5447415,0.00036164,7]
[325257458,1714667447271,-500.0,0.00036164,7]
[325257459,1714667447282,-500.0,0.00036164,7]
[325257460,1714667447291,-500.0,0.00036164,7]
[325257461,1714667447302,-181.53936829,0.00036164,2]
[325257462,1714667447311,-500.0,0.00036164,7]
[325257463,1714667447321,-510.07429988,0.00036164,7]
[325257464,1714667447330,-269.76489504,0.00036164,7]
[325257465,1714667447340,-990.37,0.00036164,7]
[325257466,1714667447349,-500.0,0.00036164,7]
[325257467,1714667447360,-500.0,0.00036164,7]
[325257468,1714667447369,-1394.91,0.00036164,7]
[325257469,1714667447379,-846.3,0.00036164,7]
[325257470,1714667447389,-503.3508713,0.00036164,7]
[325257471,1714667447398,-545.56,0.00036164,7]
[325257472,1714667447408,-500.0,0.00036164,7]
[325257473,1714667447417,-500.0,0.00036164,7]
[325257474,1714667447427,-500.0,0.00036164,7]
[325257475,1714667447437,-500.0,0.00036164,7]
[325257476,1714667447446,-500.0,0.00036164,7]
[325257477,1714667447457,-417.05896259,0.00036164,2]
[325257478,1714667447467,-500.0,0.00036164,7]
[325257479,1714667447476,-803.21,0.00036164,7]
[325257480,1714667447486,-500.0,0.00036164,7]
[325257481,1714667447495,-1000.0,0.00036164,7]
[325257482,1714667447504,-500.0,0.00036164,7]
[325257483,1714667447513,-500.0,0.00036164,7]
[325257484,1714667447523,-500.0,0.00036164,7]
[325257485,1714667447533,-1485.36,0.00036164,7]
[325257486,1714667447543,-500.0,0.00036164,7]
[325257487,1714667447552,-1720.99,0.00036164,7]
[325257488,1714667447562,-500.0,0.00036164,7]
[325257489,1714667447572,-500.0,0.00036164,7]
[325257490,1714667447583,-500.0,0.00036164,7]
[325257491,1714667447592,-500.0,0.00036164,7]
[325257492,1714667447602,-500.0,0.00036164,7]
[325257493,1714667447610,-500.0,0.00036164,7]
[325257494,1714667447620,-500.0,0.00036164,7]
[325257495,1714667447630,-500.0,0.00036164,7]
[325257496,1714667447639,-500.0,0.00036164,7]
[325257497,1714667447648,-500.0,0.00036164,7]
[325257498,1714667447657,-500.0,0.00036164,7]
[325257499,1714667447667,-500.0,0.00036164,7]
[325257500,1714667447676,-274.18008044,0.00036164,2]
[325257501,1714667447686,-500.0,0.00036164,7]
[325257502,1714667447695,-621.59404185,0.00036164,7]
[325257503,1714667447705,-500.0,0.00036164,7]
[325257504,1714667447714,-500.0,0.00036164,7]
[325257505,1714667447723,-936.0,0.00036164,7]
[325257506,1714667447734,-500.0,0.00036164,7]
[325257507,1714667447743,-500.0,0.00036164,7]
[325257508,1714667447753,-500.0,0.00036164,7]
[325257509,1714667447763,-500.0,0.00036164,7]
[325257510,1714667447776,-552.3,0.00036164,7]
[325257511,1714667447800,-500.0,0.00036164,7]
[325257512,1714667447819,-783.72,0.00036164,7]
[325257513,1714667447840,-500.0,0.00036164,7]
[325257514,1714667447862,-581.91613186,0.00036164,2]
[325257515,1714667447883,-500.0,0.00036164,7]
[325257516,1714667447903,-500.0,0.00036164,7]
[325257517,1714667447919,-500.0,0.00036164,7]
[325257518,1714667447937,-500.0,0.00036164,7]
[325257519,1714667447957,-500.0,0.00036164,7]
[325257520,1714667447977,-500.7490207,0.00036164,7]
[325257521,1714667447991,-526.85210417,0.00036164,7]
[325257522,1714667448013,-500.0,0.00036164,2]
[325257523,1714667448028,-1995.62,0.00036164,2]
[325257524,1714667448046,-500.0,0.00036164,7]
[325257525,1714667448061,-500.0,0.00036164,7]
[325257526,1714667448077,-500.0,0.00036164,7]
[325257527,1714667448092,-870.44,0.00036164,7]
[325257528,1714667448109,-500.0,0.00036164,7]
[325257529,1714667448126,-500.0,0.00036164,7]
[325257530,1714667448142,-802.59,0.00036164,7]
[325257531,1714667448158,-500.0,0.00036164,7]
[325257532,1714667448174,-728.02,0.00036164,7]
[325257533,1714667448190,-500.0,0.00036164,2]
[325257534,1714667448210,-500.0,0.00036164,7]
[325257535,1714667448226,-500.0,0.00036164,7]
[325257536,1714667448244,-500.0,0.00036164,7]
[325257537,1714667448262,-524.14,0.00036164,7]
[325257538,1714667448278,-500.53285118,0.00036164,7]
[325257539,1714667448296,-506.11546267,0.00036164,7]
[325257540,1714667448312,-500.0,0.00036164,7]
[325257541,1714667448330,-500.0,0.00036164,7]
[325257542,1714667448346,-500.0,0.00036164,7]
[325257543,1714667448369,-500.0,0.00036164,7]
[325257544,1714667448387,-500.0,0.00036164,7]
[325257545,1714667448403,-834.15,0.00036164,7]
[325257546,1714667448419,-500.0,0.00036164,7]
[325257547,1714667448435,-526.59,0.00036164,7]
[325257548,1714667448452,-500.0,0.00036164,7]
[325257549,1714667448469,-500.0,0.00036164,7]
[325257550,1714667448486,-500.0,0.00036164,7]
[325257551,1714667448503,-500.0,0.00036164,7]
[325257552,1714667448519,-828.19,0.00036164,7]
[325257553,1714667448535,-500.0,0.00036164,7]
[325257554,1714667448551,-500.0,0.00036164,7]
[325257555,1714667448566,-1064.74,0.00036164,7]
[325257556,1714667448581,-608.80583025,0.00036164,7]
[325257557,1714667448597,-500.0,0.00036164,7]
[325257558,1714667448613,-500.0,0.00036164,7]
[325257559,1714667448631,-500.0,0.00036164,7]
[325257560,1714667448646,-2233.95,0.00036164,7]
[325257561,1714667448662,-2862.21,0.00036164,7]
[325257562,1714667448677,-500.0,0.00036164,7]
[325257563,1714667448692,-1450.2,0.00036164,7]
[325257564,1714667448707,-500.0,0.00036164,7]
[325257565,1714667448723,-500.0,0.00036164,7]
[325257566,1714667448739,-500.0,0.00036164,7]
[325257567,1714667448755,-500.0,0.00036164,7]
[325257568,1714667448770,-500.0,0.00036164,7]
[325257569,1714667448785,-625.52065199,0.00036164,7]
[325257570,1714667448802,-500.0,0.00036164,7]
[325257571,1714667448818,-1253.5,0.00036164,7]
[325257572,1714667448837,-500.0,0.00036164,7]
[325257573,1714667448855,-500.0,0.00036164,7]
[325257574,1714667448872,-500.0,0.00036164,7]
[325257575,1714667448894,-1207.81,0.00036164,7]
[325257576,1714667448914,-500.0,0.00036164,7]
[325257577,1714667448932,-500.0,0.00036164,7]
[325257578,1714667448950,-500.0,0.00036164,7]
[325257579,1714667448968,-500.0,0.00036164,7]
[325257580,1714667448986,-500.0,0.00036164,7]
[325257581,1714667449015,-500.0,0.00036164,7]
[325257582,1714667449033,-500.0,0.00036164,7]
[325257583,1714667449050,-520.11619247,0.00036164,7]
[325257584,1714667449068,-500.0,0.00036164,7]
[325257585,1714667449085,-1349.71,0.00036164,7]
[325257586,1714667449104,-500.0,0.00036164,7]
[325257587,1714667449122,-481.74441328,0.00036164,7]
[325257588,1714667449145,-500.0,0.00036164,7]
[325257589,1714667449162,-500.0,0.00036164,7]
[325257590,1714667449178,-500.0,0.00036164,7]
[325257591,1714667449195,-1056.63,0.00036164,7]
[325257592,1714667449211,-500.0,0.00036164,7]
[325257593,1714667449228,-500.0,0.00036164,7]
[325257594,1714667449245,-895.53,0.00036164,7]
[325257595,1714667449261,-1631.83,0.00036164,7]
[325257596,1714667449277,-500.0,0.00036164,7]
[325257597,1714667449295,-582.37,0.00036164,7]
[325257598,1714667449311,-500.0,0.00036164,7]
[325257599,1714667449328,-500.0,0.00036164,7]
[325257600,1714667449343,-665.73,0.00036164,7]
[325257601,1714667449357,-500.0,0.00036164,7]
[325257602,1714667449372,-500.0,0.00036164,7]
[325257603,1714667449391,-500.0,0.00036164,7]
[325257604,1714667449401,-500.0,0.00036164,7]
[325257605,1714667449410,-500.0,0.00036164,7]
[325257606,1714667449419,-500.0,0.00036164,7]
[325257607,1714667449429,-500.0,0.00036164,7]
[325257608,1714667449438,-500.0,0.00036164,7]
[325257609,1714667449447,-500.0,0.00036164,7]
[325257610,1714667449457,-500.0,0.00036164,7]
[325257611,1714667449466,-530.31,0.00036164,7]
[325257612,1714667449476,-504.88612857,0.00036164,7]
[325257613,1714667449486,-500.0,0.00036164,7]
[325257614,1714667449495,-500.0,0.00036164,7]
[325257615,1714667449846,-500.0,0.00036164,7]
[325257616,1714667449874,-500.0,0.00036164,7]
[325257617,1714667449911,-500.0,0.00036164,7]
[325257618,1714667449923,-1843.39,0.00036164,7]
[325257619,1714667449932,-500.0,0.00036164,7]
[325257620,1714667449943,-500.0,0.00036164,7]
[325257621,1714667449952,-1052.3880723,0.00036164,7]
[325257622,1714667449962,-500.0,0.00036164,7]
[325257623,1714667449972,-500.0,0.00036164,7]
[325257624,1714667449983,-500.0,0.00036164,7]
[325257625,1714667449993,-500.0,0.00036164,7]
[325257626,1714667450005,-500.0,0.00036164,7]
[325257627,1714667450015,-772.4,0.00036164,7]
[325257628,1714667450025,-500.0,0.00036164,7]
[325257629,1714667450035,-500.0,0.00036164,7]
[325257630,1714667450044,-500.0,0.00036164,7]
[325257631,1714667450055,-1433.89,0.00036164,7]
[325257632,1714667450065,-185.35425884,0.00036164,7]
[325257633,1714667450074,-500.0,0.00036164,7]
[325257634,1714667450084,-1028.62,0.00036164,7]
[325257635,1714667450093,-500.0,0.00036164,7]
[325257636,1714667450103,-631.81244551,0.00036164,7]
[325257637,1714667450113,-500.0,0.00036164,7]
[325257638,1714667450122,-555.94204064,0.00036164,7]
[325257639,1714667450133,-521.16020172,0.00036164,7]
[325257640,1714667450142,-291.50560286,0.00036164,7]
[325257641,1714667450152,-500.0,0.00036164,7]
[325257642,1714667450161,-500.0,0.00036164,7]
[325257643,1714667450171,-500.0,0.00036164,7]
[325257644,1714667450180,-500.0,0.00036164,7]
[325257645,1714667450190,-1410.59,0.00036164,7]
[325257646,1714667450199,-500.0,0.00036164,7]
[325257647,1714667450208,-500.0,0.00036164,7]
[325257648,1714667450218,-500.0,0.00036164,7]
[325257649,1714667450227,-500.0,0.00036164,7]
[325257650,1714667450237,-500.0,0.00036164,7]
[325257651,1714667450250,-500.0,0.00036164,7]
[325257652,1714667450259,-500.0,0.00036164,7]
[325257653,1714667450270,-449.06240211,0.00036164,7]
[325257654,1714667450280,-500.0,0.00036164,7]
[325257655,1714667450300,-500.0,0.00036164,7]
[325257656,1714667450312,-500.0,0.00036164,7]
[325257657,1714667450322,-500.0,0.00036164,7]
[325257658,1714667450331,-500.0,0.00036164,7]
[325257659,1714667450340,-500.0,0.00036164,7]
[325257660,1714667450349,-500.0,0.00036164,7]
[325257661,1714667450359,-1507.76,0.00036164,7]
[325257662,1714667450368,-500.0,0.00036164,7]
[325257663,1714667450379,-1246.39,0.00036164,7]
[325257664,1714667450389,-500.0,0.00036164,7]
[325257665,1714667450399,-877.28,0.00036164,7]
[325257666,1714667450408,-547.71225266,0.00036164,7]
[325257667,1714667450418,-589.6,0.00036164,7]
[325257668,1714667450427,-500.0,0.00036164,7]
[325257669,1714667450437,-500.0,0.00036164,7]
[325257670,1714667450447,-500.0,0.00036164,7]
[325257671,1714667450457,-500.0,0.00036164,7]
[325257672,1714667450467,-500.0,0.00036164,7]
[325257673,1714667450476,-500.0,0.00036164,7]
[325257674,1714667450486,-500.0,0.00036164,7]
[325257675,1714667450495,-500.0,0.00036164,7]
[325257676,1714667450505,-500.0,0.00036164,7]
[325257677,1714667450515,-500.0,0.00036164,7]
[325257678,1714667450524,-1072.14,0.00036164,7]
[325257679,1714667450534,-791.16,0.00036164,7]
[325257680,1714667450543,-500.0,0.00036164,7]
[325257681,1714667450553,-500.0,0.00036164,7]
[325257682,1714667450562,-500.0,0.00036164,7]
[325257683,1714667450571,-500.0,0.00036164,7]
[325257684,1714667450581,-502.13382194,0.00036164,7]
[325257685,1714667450591,-500.0,0.00036164,7]
[325257686,1714667450600,-661.54,0.00036164,7]
[325257687,1714667450609,-500.0,0.00036164,7]
[325257688,1714667450619,-1838.42,0.00036164,7]
[325257689,1714667450629,-500.0,0.00036164,7]
[325257690,1714667450638,-569.75,0.00036164,7]
[325257691,1714667450648,-500.0,0.00036164,7]
[325257692,1714667450658,-500.0,0.00036164,7]
[325257693,1714667450667,-500.0,0.00036164,7]
[325257694,1714667450676,-500.0,0.00036164,7]
[325257695,1714667450686,-500.0,0.00036164,7]
[325257696,1714667450695,-736.8,0.00036164,7]
[325257697,1714667450705,-500.0,0.00036164,7]
[325257698,1714667450714,-500.0,0.00036164,7]
[325257699,1714667450724,-500.0,0.00036164,7]
[325257700,1714667450733,-814.06,0.00036164,7]
[325257701,1714667450743,-500.0,0.00036164,7]
[325257702,1714667450753,-500.0,0.00036164,7]
[325257703,1714667450762,-621.37,0.00036164,7]
[325257704,1714667450772,-500.0,0.00036164,7]
[325257705,1714667450781,-2397.54,0.00036164,7]
[325257706,1714667450790,-500.0,0.00036164,7]
[325257707,1714667450800,-500.0,0.00036164,7]
[325257708,1714667450810,-500.0,0.00036164,7]
[325257709,1714667450819,-500.0,0.00036164,7]
[325257710,1714667450830,-500.0,0.00036164,7]
[325257711,1714667450839,-500.0,0.00036164,7]
[325257712,1714667450850,-725.44,0.00036164,7]
[325257713,1714667450860,-500.0,0.00036164,7]
[325257714,1714667450869,-500.0,0.00036164,7]
[325257715,1714667450879,-651.96,0.00036164,7]
[325257716,1714667450888,-774.58,0.00036164,7]
[325257717,1714667450898,-500.0,0.00036164,7]
[325257718,1714667450907,-500.0,0.00036164,7]
[325257719,1714667450917,-500.0,0.00036164,7]
[325257720,1714667450926,-500.0,0.00036164,7]
[325257721,1714667450935,-500.0,0.00036164,7]
[325257722,1714667450945,-500.0,0.00036164,7]
[325257723,1714667450954,-500.0,0.00036164,7]
[325257724,1714667450964,-500.0,0.00036164,7]
[325257725,1714667450974,-500.0,0.00036164,7]
[325257726,1714667450984,-500.0,0.00036164,7]
[325257727,1714667450995,-500.0,0.00036164,7]
[325257728,1714667451006,-721.63,0.00036164,7]
[325257729,1714667451016,-500.0,0.00036164,7]
[325257730,1714667451025,-500.0,0.00036164,7]
[325257731,1714667451035,-507.3,0.00036164,7]